bitfinex/quotes_SOLUSD_20250106
["timestamp","ask_amount","ask_price","bid_price","bid_amount"]
[1736192465313,0.6817,220.16,220.12,8.79735181]
[1736192466608,2.02,220.18,220.13,8.79735181]
[1736192466829,2.02,220.18,220.08,12.9205]
[1736192466830,2.02,220.18,220.14,8.79735181]
[1736192469679,0.6817,220.27,220.17,8.79735181]
[1736192469880,2.02,220.23,220.19,8.79735181]
[1736192470113,2.0,220.25,220.21,8.79735181]
[1736192470413,2.0,220.25,220.14,20.0]
[1736192470414,2.0,220.25,220.22,8.79735181]
[1736192472116,2.0,220.25,220.21,8.79735181]
[1736192472502,2.0,220.25,220.2,8.79735181]
[1736192472700,2.0,220.25,220.19,8.79735181]
[1736192473005,2.6817,220.25,220.19,8.79735181]
[1736192473403,11.47905181,220.25,220.19,8.79735181]
[1736192473791,11.47905181,220.25,220.18,8.79735181]
[1736192474614,8.79735181,220.23,220.16,8.79735181]
[1736192474788,0.6817,220.22,220.16,8.79735181]
[1736192475392,9.47905181,220.22,220.16,8.79735181]
[1736192475694,8.79735181,220.2,220.14,8.79735181]
[1736192475895,0.6817,220.19,220.13,8.79735181]
[1736192476087,9.47905181,220.19,220.12,8.79735181]
[1736192476408,0.6817,220.19,220.13,8.79735181]
[1736192476982,8.79735181,220.17,220.11,1.6094]
[1736192477212,0.6817,220.16,220.11,1.6094]
[1736192477596,0.6817,220.16,220.08,11.3592]
[1736192477790,0.6817,220.16,220.11,8.79735181]
[1736192478204,0.6817,220.17,220.12,8.79735181]
[1736192480312,0.6817,220.17,220.11,8.79735181]
[1736192480921,8.79735181,220.16,220.09,8.79735181]
[1736192481124,0.6817,220.15,220.09,8.79735181]
[1736192481590,8.79735181,220.16,220.09,8.79735181]
[1736192481791,0.6817,220.15,220.08,11.3592]
[1736192482092,0.6817,220.15,220.09,8.79735181]
[1736192482294,25.776884,220.18,220.08,11.3592]
[1736192482295,0.6817,220.17,220.11,8.79735181]
[1736192483224,9.47905181,220.17,220.08,11.3592]
[1736192483431,9.47905181,220.17,220.1,8.79735181]
[1736192483818,9.47905181,220.17,220.08,11.3592]
[1736192484099,8.79735181,220.16,220.09,8.79735181]
[1736192484304,0.6817,220.15,220.08,11.3592]
[1736192484488,0.6817,220.15,220.09,8.79735181]
[1736192484906,0.6817,220.15,220.1,8.79735181]
[1736192485218,0.6817,220.16,220.1,8.79735181]
[1736192485725,0.6817,220.16,220.11,8.79735181]
[1736192486189,0.6817,220.17,220.11,8.79735181]
[1736192487025,0.6817,220.17,220.05,12.57819972]
[1736192487026,8.79735181,220.13,220.05,6.49709972]
[1736192487191,8.79735181,220.13,220.06,8.79735181]
[1736192487518,0.6817,220.12,220.07,8.79735181]
[1736192487717,0.6817,220.12,220.08,8.79735181]
[1736192487942,0.6817,220.13,220.08,8.79735181]
[1736192488829,24.458584,220.14,220.08,8.79735181]
[1736192489207,0.6817,220.14,220.08,8.79735181]
[1736192489416,8.79735181,220.17,220.1,8.79735181]
[1736192489610,0.6817,220.16,220.11,8.79735181]
[1736192490122,0.6817,220.16,220.12,8.79735181]
[1736192490805,0.6817,220.16,220.11,8.79735181]
[1736192491356,9.47905181,220.16,220.09,20.15605181]
[1736192492127,10.81735181,220.17,220.1,8.79735181]
[1736192492426,10.81735181,220.17,220.11,8.79735181]
[1736192492722,0.6817,220.16,220.11,8.79735181]
[1736192495321,0.6817,220.16,220.1,8.79735181]
[1736192496435,0.6817,220.16,220.11,8.79735181]
[1736192498733,0.6817,220.16,220.1,8.79735181]
[1736192499037,0.6817,220.16,220.11,8.79735181]
[1736192502341,8.79735181,220.17,220.11,8.79735181]
[1736192502514,9.47905181,220.17,220.11,8.79735181]
[1736192504042,0.6817,220.17,220.14,8.79735181]
[1736192504246,2.0,220.2,220.15,8.79735181]
[1736192504756,17.23144112,220.21,220.15,8.79735181]
[1736192504923,19.23144112,220.21,220.15,8.79735181]
[1736192505120,16.54974112,220.21,220.16,8.79735181]
[1736192505431,16.54974112,220.21,220.2,8.79735181]
[1736192506419,16.54974112,220.21,220.19,8.79735181]
[1736192506835,16.54974112,220.21,220.18,8.79735181]
[1736192509146,16.54974112,220.21,220.19,8.79735181]
[1736192511337,16.54974112,220.21,220.18,8.79735181]
[1736192516639,16.54974112,220.21,220.15,11.3554]
[1736192516640,16.54974112,220.21,220.19,8.79735181]
[1736192516856,16.54974112,220.21,220.2,8.79735181]
[1736192518259,16.54974112,220.21,220.18,20.15125181]
[1736192518863,16.54974112,220.21,220.18,11.3539]
[1736192519557,16.54974112,220.21,220.18,20.15125181]
[1736192522648,16.54974112,220.21,220.19,8.79735181]
[1736192522850,16.54974112,220.21,220.2,8.79735181]
[1736192525273,14.10824112,220.21,220.2,8.79735181]
[1736192525471,11.19974112,220.21,220.2,8.79735181]
[1736192529854,11.19974112,220.21,220.19,11.3534]
[1736192530059,11.19974112,220.21,220.19,20.15075181]
[1736192530877,11.19974112,220.21,220.17,8.79735181]
[1736192531778,9.47905181,220.2,220.11,6.5626]
[1736192532077,9.47905181,220.2,220.14,20.0]
[1736192532078,8.79735181,220.19,220.14,20.0]
[1736192532990,8.79735181,220.19,220.12,8.79735181]
[1736192533195,8.79735181,220.17,220.11,11.3575]
[1736192533500,8.79735181,220.17,220.11,20.15485181]
[1736192533654,8.79735181,220.17,220.11,11.3575]
[1736192533983,9.47905181,220.16,220.08,1.6346]
[1736192534280,9.47905181,220.16,220.1,8.79735181]
[1736192534482,8.79735181,220.16,220.1,8.79735181]
[1736192534687,8.79735181,220.17,220.11,8.79735181]
[1736192535458,9.47905181,220.18,220.11,8.79735181]
[1736192536585,8.79735181,220.17,220.11,8.79735181]
[1736192536785,0.6817,220.16,220.11,8.79735181]
[1736192536989,8.79735181,220.17,220.11,8.79735181]
[1736192537587,0.6817,220.16,220.11,8.79735181]
[1736192537895,0.6817,220.16,220.1,8.79735181]
[1736192539167,9.47905181,220.18,220.11,8.79735181]
[1736192540589,8.79735181,220.17,220.1,8.79735181]
[1736192540886,9.47905181,220.18,220.11,8.79735181]
[1736192541664,0.6817,220.18,220.12,8.79735181]
[1736192541979,0.6817,220.18,220.13,8.79735181]
[1736192542177,10.79735181,220.19,220.13,8.79735181]
[1736192542375,2.6817,220.2,220.15,8.79735181]
[1736192542565,11.19974112,220.21,220.16,8.79735181]
[1736192543575,19.99709293,220.21,220.14,8.79735181]
[1736192543779,8.79735181,220.2,220.13,20.15395181]
[1736192543969,19.99709293,220.21,220.14,8.79735181]
[1736192544878,11.19974112,220.21,220.15,8.79735181]
[1736192545687,11.19974112,220.21,220.16,8.79735181]
[1736192550276,11.19974112,220.21,220.15,8.79735181]
[1736192551692,11.19974112,220.21,220.16,8.79735181]
[1736192552592,11.19974112,220.21,220.17,8.79735181]
[1736192554001,11.19974112,220.21,220.16,8.79735181]
[1736192556773,11.19974112,220.21,220.15,8.79735181]
[1736192556973,11.19974112,220.21,220.16,8.79735181]
[1736192561800,11.19974112,220.21,220.17,8.79735181]
[1736192562305,11.19974112,220.21,220.16,8.79735181]
[1736192564304,0.6817,220.2,220.15,8.79735181]
[1736192564487,0.6817,220.2,220.14,8.79735181]
[1736192566208,11.19974112,220.21,220.15,8.79735181]
[1736192566414,11.88144112,220.21,220.15,8.79735181]
[1736192568698,8.79735181,220.2,220.12,20.0]
[1736192568999,8.79735181,220.17,220.1,8.79735181]
[1736192569209,0.6817,220.16,220.1,8.79735181]
[1736192569998,8.79735181,220.17,220.1,8.79735181]
[1736192570406,8.79735181,220.18,220.11,8.79735181]
[1736192570717,0.6817,220.17,220.11,8.79735181]
[1736192573508,0.6817,220.17,220.12,8.79735181]
[1736192574908,9.47905181,220.2,220.13,8.79735181]
[1736192575090,9.47905181,220.2,220.14,8.79735181]
[1736192575091,0.6817,220.2,220.14,8.79735181]
[1736192575291,11.19974112,220.21,220.17,8.79735181]
[1736192575688,11.19974112,220.21,220.16,8.79735181]
[1736192576308,11.19974112,220.21,220.17,8.79735181]
[1736192577096,11.19974112,220.21,220.15,8.79735181]
[1736192579296,9.47905181,220.22,220.15,8.79735181]
[1736192579497,0.6817,220.22,220.16,8.79735181]
[1736192580710,9.47905181,220.22,220.15,8.79735181]
[1736192581205,9.47905181,220.22,220.16,8.79735181]
[1736192581206,0.6817,220.22,220.16,8.79735181]
[1736192582713,0.6817,220.22,220.17,8.79735181]
[1736192582912,0.6817,220.23,220.18,8.79735181]
[1736192583118,2.0,220.26,220.2,8.79735181]
[1736192583321,2.6817,220.26,220.2,8.79735181]
[1736192583496,11.47905181,220.26,220.2,8.79735181]
[1736192584611,8.79735181,220.25,220.19,8.79735181]
[1736192584915,0.6817,220.24,220.19,8.79735181]
[1736192587051,0.6817,220.25,220.19,8.79735181]
[1736192588418,0.6817,220.25,220.2,8.79735181]
[1736192588610,2.6817,220.26,220.2,8.79735181]
[1736192589219,2.6817,220.26,220.21,8.79735181]
[1736192589423,2.0,220.26,220.21,8.79735181]
[1736192589921,2.0,220.26,220.22,8.79735181]
[1736192590409,8.79735181,220.28,220.22,8.79735181]
[1736192590608,0.6817,220.27,220.22,8.79735181]
[1736192590820,0.6817,220.27,220.21,8.79735181]
[1736192591121,9.47905181,220.27,220.2,8.79735181]
[1736192591326,0.6817,220.27,220.21,8.79735181]
[1736192592021,9.47905181,220.27,220.2,8.79735181]
[1736192592820,2.6817,220.27,220.21,8.79735181]
[1736192593701,11.47905181,220.27,220.2,8.79735181]
[1736192595715,2.6817,220.27,220.21,8.79735181]
[1736192596229,11.47905181,220.27,220.2,8.79735181]
[1736192598730,8.79735181,220.26,220.2,8.79735181]
[1736192599034,8.79735181,220.24,220.15,19.96669286]
[1736192599226,8.79735181,220.24,220.18,8.79735181]
[1736192599227,0.6817,220.23,220.18,8.79735181]
[1736192599427,8.79735181,220.24,220.15,12.9083]
[1736192599737,9.47905181,220.25,220.18,8.79735181]
[1736192600039,0.6817,220.25,220.18,8.79735181]
[1736192600238,9.47905181,220.25,220.18,8.79735181]
[1736192600438,8.79735181,220.24,220.18,8.79735181]
[1736192600811,0.6817,220.23,220.18,8.79735181]
[1736192601147,9.47905181,220.23,220.17,8.79735181]
[1736192602516,8.79735181,220.19,220.13,7.05839286]
[1736192602724,0.6817,220.18,220.13,7.05839286]
[1736192602929,0.6817,220.18,220.12,20.15455181]
[1736192603238,8.79735181,220.19,220.12,20.15455181]
[1736192603408,8.79735181,220.19,220.13,8.79735181]
[1736192603609,10.79735181,220.2,220.13,8.79735181]
[1736192603818,0.6817,220.19,220.13,8.79735181]
[1736192604439,0.6817,220.19,220.14,8.79735181]
[1736192604608,9.47905181,220.19,220.12,20.15455181]
[1736192604937,8.79735181,220.18,220.11,15.85574467]
[1736192605246,8.79735181,220.19,220.13,8.79735181]
[1736192605439,0.6817,220.18,220.13,8.79735181]
[1736192605747,8.79735181,220.19,220.13,8.79735181]
[1736192606044,2.0,220.2,220.14,8.79735181]
[1736192606252,8.79735181,220.18,220.12,8.79735181]
[1736192607139,10.79735181,220.2,220.13,8.79735181]
[1736192607341,8.79735181,220.19,220.12,8.79735181]
[1736192607522,0.6817,220.18,220.12,8.79735181]
[1736192608116,10.79735181,220.2,220.13,8.79735181]
[1736192608315,0.6817,220.19,220.13,8.79735181]
[1736192612946,10.79735181,220.2,220.13,8.79735181]
[1736192615441,0.6817,220.19,220.13,8.79735181]
[1736192615841,10.79735181,220.2,220.13,8.79735181]
[1736192616043,10.79735181,220.2,220.08,13.55549258]
[1736192616044,2.0,220.2,220.14,8.79735181]
[1736192616228,2.6817,220.2,220.14,8.79735181]
[1736192616750,0.6817,220.22,220.16,8.79735181]
[1736192616936,2.0,220.22,220.16,8.79735181]
[1736192617125,2.0,220.22,220.18,8.79735181]
[1736192617326,0.6817,220.24,220.18,8.79735181]
[1736192617640,2.0,220.23,220.17,8.79735181]
[1736192618138,0.6817,220.24,220.18,8.79735181]
[1736192618344,2.0,220.24,220.19,8.79735181]
[1736192620447,2.0,220.26,220.2,8.79735181]
[1736192620650,22.0,220.26,220.22,8.79735181]
[1736192621251,20.0,220.26,220.22,8.79735181]
[1736192622354,2.6817,220.27,220.21,8.79735181]
[1736192622956,2.0,220.27,220.21,8.79735181]
[1736192623856,2.0,220.28,220.22,8.79735181]
[1736192624752,2.0,220.28,220.23,8.79735181]
[1736192626478,2.0,220.28,220.18,11.3543]
[1736192626479,2.0,220.28,220.24,8.79735181]
[1736192627160,8.79735181,220.31,220.24,8.79735181]
[1736192627363,2.0,220.3,220.24,8.79735181]
[1736192630163,2.0,220.3,220.25,8.79735181]
[1736192632573,2.0,220.3,220.24,8.79735181]
[1736192633874,8.79735181,220.31,220.24,8.79735181]
[1736192634046,17.9313,220.41,220.28,8.79735181]
[1736192634257,8.79735181,220.35,220.28,8.79735181]
[1736192634453,8.79735181,220.34,220.28,8.79735181]
[1736192634652,8.79735181,220.34,220.27,8.79735181]
[1736192635373,8.79735181,220.32,220.25,8.79735181]
[1736192635677,8.79735181,220.33,220.26,8.79735181]
[1736192637482,8.79735181,220.34,220.27,8.79735181]
[1736192637689,10.79735181,220.35,220.28,8.79735181]
[1736192639087,20.0,220.38,220.31,8.79735181]
[1736192639283,2.0,220.37,220.33,8.79735181]
[1736192639483,2.0,220.38,220.33,8.79735181]
[1736192639684,8.79735181,220.39,220.33,8.79735181]
[1736192639883,2.0,220.38,220.33,8.79735181]
[1736192640109,8.79735181,220.39,220.33,8.79735181]
[1736192640284,2.0,220.38,220.32,8.79735181]
[1736192640606,2.0,220.38,220.33,8.79735181]
[1736192641519,2.0,220.38,220.34,8.79735181]
[1736192641712,2.0,220.38,220.3,11.348]
[1736192642006,2.0,220.38,220.33,8.79735181]
[1736192643398,8.79735181,220.4,220.33,8.79735181]
[1736192643399,10.79735181,220.4,220.33,8.79735181]
[1736192643903,8.79735181,220.39,220.32,8.79735181]
[1736192646306,10.79735181,220.4,220.33,8.79735181]
[1736192646505,2.0,220.4,220.34,8.79735181]
[1736192647282,10.79735181,220.4,220.3,11.348]
[1736192647504,8.79735181,220.39,220.32,8.79735181]
[1736192647995,10.79735181,220.4,220.33,8.79735181]
[1736192648486,8.79735181,220.4,220.33,8.79735181]
[1736192648812,8.79735181,220.39,220.32,8.79735181]
[1736192650210,8.79735181,220.39,220.33,8.79735181]
[1736192650578,10.79735181,220.4,220.33,8.79735181]
[1736192652211,10.79735181,220.4,220.34,8.79735181]
[1736192655810,10.79735181,220.4,220.33,8.79735181]
[1736192661013,2.0,220.4,220.35,8.79735181]
[1736192661201,20.0,220.43,220.36,8.79735181]
[1736192661202,1.98,220.42,220.36,8.79735181]
[1736192661714,10.77735181,220.42,220.35,8.79735181]
[1736192662587,8.79735181,220.41,220.35,8.79735181]
[1736192662792,8.79735181,220.39,220.33,10.30755181]
[1736192663007,8.79735181,220.39,220.33,1.5102]
[1736192663218,8.79735181,220.4,220.33,10.30755181]
[1736192663615,8.79735181,220.39,220.33,10.30755181]
[1736192665821,8.79735181,220.4,220.34,8.79735181]
[1736192666326,8.79735181,220.41,220.34,8.79735181]
[1736192669832,8.79735181,220.39,220.33,10.30755181]
[1736192670126,8.79735181,220.4,220.33,10.30755181]
[1736192670428,8.79735181,220.39,220.33,1.5102]
[1736192670611,8.79735181,220.38,220.33,1.5102]
[1736192671011,8.79735181,220.37,220.29,6.4841]
[1736192671317,8.79735181,220.35,220.29,8.79735181]
[1736192673530,8.79735181,220.36,220.3,8.79735181]
[1736192673820,8.79735181,220.35,220.29,28.79735181]
[1736192674120,8.79735181,220.33,220.27,10.42505181]
[1736192674425,8.79735181,220.34,220.28,8.79735181]
[1736192677128,8.79735181,220.35,220.29,8.79735181]
[1736192678832,8.79735181,220.35,220.28,8.79735181]
[1736192680821,8.79735181,220.35,220.29,8.79735181]
[1736192681112,10.77735181,220.36,220.29,8.79735181]
[1736192682225,8.79735181,220.35,220.29,8.79735181]
[1736192686132,8.79735181,220.35,220.28,8.79735181]
[1736192686834,1.98,220.36,220.29,8.79735181]
[1736192687134,10.77735181,220.36,220.29,8.79735181]
[1736192688234,1.98,220.36,220.3,8.79735181]
[1736192688434,1.98,220.38,220.32,8.79735181]
[1736192688621,1.98,220.38,220.33,8.79735181]
[1736192688805,8.79735181,220.41,220.34,8.79735181]
[1736192689010,10.77735181,220.41,220.34,8.79735181]
[1736192689220,1.98,220.41,220.35,8.79735181]
[1736192689429,1.98,220.41,220.36,8.79735181]
[1736192689924,1.98,220.41,220.35,8.79735181]
[1736192690713,10.77735181,220.41,220.34,10.33655181]
[1736192692042,1.98,220.41,220.35,8.79735181]
[1736192692924,10.77735181,220.41,220.34,10.33655181]
[1736192693611,8.79735181,220.39,220.34,1.5392]
[1736192693813,8.79735181,220.4,220.34,1.5392]
[1736192696442,8.79735181,220.39,220.34,1.5392]
[1736192697641,8.79735181,220.4,220.34,1.5392]
[1736192703146,10.77735181,220.41,220.34,10.33655181]
[1736192703842,8.79735181,220.39,220.34,1.5392]
[1736192704027,1.98,220.41,220.34,1.5392]
[1736192704233,8.79735181,220.39,220.34,1.5392]
[1736192706727,1.98,220.41,220.34,1.5392]
[1736192706728,8.79735181,220.36,220.34,1.5392]
[1736192706934,8.79735181,220.35,220.31,6.4599]
[1736192707127,8.79735181,220.36,220.31,6.4599]
[1736192709641,8.79735181,220.37,220.31,15.25725181]
[1736192710449,10.77735181,220.37,220.31,15.25725181]
[1736192712349,10.77735181,220.37,220.31,6.4599]
[1736192712734,1.98,220.37,220.31,15.25725181]
[1736192712947,10.77735181,220.37,220.31,15.25725181]
[1736192713850,10.77735181,220.37,220.31,6.4599]
[1736192714549,10.77735181,220.37,220.29,1.5027]
[1736192714550,8.79735181,220.32,220.29,1.5027]
[1736192714747,8.79735181,220.31,220.29,1.5027]
[1736192715435,8.79735181,220.3,220.25,13.71009286]
[1736192715649,8.79735181,220.29,220.25,6.6517]
[1736192716148,8.79735181,220.3,220.25,6.6517]
[1736192716654,23.776884,220.36,220.25,6.6517]
[1736192716837,8.79735181,220.31,220.25,6.6517]
[1736192718649,23.776884,220.36,220.25,6.6517]
[1736192718823,8.79735181,220.32,220.25,15.44905181]
[1736192719022,8.79735181,220.3,220.25,6.6517]
[1736192721858,8.79735181,220.31,220.25,6.6517]
[1736192722259,8.79735181,220.32,220.25,15.44905181]
[1736192722859,8.79735181,220.34,220.28,8.79735181]
[1736192723434,23.776884,220.36,220.29,8.79735181]
[1736192723635,32.57423581,220.36,220.29,8.79735181]
[1736192723854,8.79735181,220.36,220.29,8.79735181]
[1736192724076,1.98,220.35,220.29,8.79735181]
[1736192724371,1.98,220.34,220.29,8.79735181]
[1736192726263,8.79735181,220.35,220.29,8.79735181]
[1736192726569,10.77735181,220.35,220.29,8.79735181]
[1736192727154,10.77735181,220.35,220.25,18.002]
[1736192727155,8.79735181,220.34,220.28,8.79735181]
[1736192727574,10.77735181,220.34,220.28,8.79735181]
[1736192727877,1.98,220.34,220.28,8.79735181]
[1736192728190,1.98,220.35,220.29,8.79735181]
[1736192728342,1.98,220.35,220.31,8.79735181]
[1736192728743,8.79735181,220.38,220.31,8.79735181]
[1736192729172,10.77735181,220.38,220.32,8.79735181]
[1736192731540,10.77735181,220.38,220.31,8.79735181]
[1736192732164,8.79735181,220.38,220.31,8.79735181]
[1736192733379,8.79735181,220.37,220.31,8.79735181]
[1736192734671,8.79735181,220.34,220.28,1.6659]
[1736192734872,8.79735181,220.33,220.28,1.6659]
[1736192737068,8.79735181,220.34,220.28,10.46325181]
[1736192743275,25.756884,220.39,220.28,10.46325181]
[1736192743476,8.79735181,220.34,220.28,10.46325181]
[1736192745089,8.79735181,220.35,220.29,8.79735181]
[1736192746861,10.77735181,220.35,220.28,10.46325181]
[1736192748687,8.79735181,220.34,220.28,10.46325181]
[1736192749691,8.79735181,220.34,220.28,1.6659]
[1736192749985,8.79735181,220.34,220.27,20.14665181]
[1736192750190,1.98,220.35,220.27,11.3493]
[1736192750191,8.79735181,220.33,220.27,11.3493]
[1736192750360,8.79735181,220.32,220.27,11.3493]
[1736192750766,1.98,220.35,220.23,8.64799286]
[1736192750987,8.79735181,220.28,220.23,8.64799286]
[1736192751479,8.79735181,220.27,220.23,8.64799286]
[1736192752175,8.79735181,220.28,220.23,1.5896]
[1736192752678,8.79735181,220.28,220.2,17.4027]
[1736192752679,8.79735181,220.25,220.2,17.4027]
[1736192753488,8.79735181,220.23,220.18,8.68439286]
[1736192753688,8.79735181,220.22,220.18,1.626]
[1736192754290,8.79735181,220.23,220.18,1.626]
[1736192754778,8.79735181,220.24,220.18,1.626]
[1736192756675,8.79735181,220.24,220.18,10.42335181]
[1736192763885,8.79735181,220.25,220.19,8.79735181]
[1736192764385,1.98,220.25,220.21,8.79735181]
[1736192765501,1.98,220.25,220.22,8.79735181]
[1736192765694,1.98,220.28,220.23,8.79735181]
[1736192766310,25.756884,220.29,220.23,8.79735181]
[1736192766516,34.55423581,220.29,220.22,8.79735181]
[1736192766675,1.98,220.28,220.22,8.79735181]
[1736192766984,1.98,220.28,220.23,8.79735181]
[1736192767296,8.79735181,220.29,220.23,8.79735181]
[1736192767526,8.79735181,220.29,220.26,8.79735181]
[1736192767527,1.98,220.29,220.26,8.79735181]
[1736192768702,8.79735181,220.33,220.27,8.79735181]
[1736192768882,8.79735181,220.35,220.29,8.79735181]
[1736192769073,1.98,220.34,220.29,8.79735181]
[1736192771497,1.98,220.34,220.26,12.9259]
[1736192771498,1.98,220.34,220.28,8.79735181]
[1736192771883,10.77735181,220.34,220.28,8.79735181]
[1736192773006,8.79735181,220.33,220.26,12.9259]
[1736192773192,8.79735181,220.32,220.26,10.37325181]
[1736192773705,8.79735181,220.33,220.27,8.79735181]
[1736192774078,8.79735181,220.32,220.26,10.37325181]
[1736192774799,8.79735181,220.32,220.26,1.5759]
[1736192775002,8.79735181,220.29,220.23,20.14905181]
[1736192775177,8.79735181,220.3,220.24,8.79735181]
[1736192775995,8.79735181,220.29,220.23,11.3517]
[1736192776397,8.79735181,220.29,220.23,20.14905181]
[1736192777106,8.79735181,220.3,220.24,8.79735181]
[1736192777685,8.79735181,220.31,220.25,8.79735181]
[1736192780714,8.79735181,220.32,220.26,8.79735181]
[1736192781217,8.79735181,220.31,220.25,8.79735181]
[1736192782212,8.79735181,220.3,220.24,8.79735181]
[1736192782519,8.79735181,220.31,220.24,8.79735181]
[1736192783821,8.79735181,220.29,220.23,20.14905181]
[1736192784136,8.79735181,220.29,220.23,11.3517]
[1736192784421,8.79735181,220.29,220.22,15.21295181]
[1736192784422,8.79735181,220.28,220.22,6.4156]
[1736192784714,8.79735181,220.26,220.21,1.5759]
[1736192785590,8.79735181,220.24,220.21,1.5759]
[1736192785791,8.79735181,220.25,220.21,1.5759]
[1736192786006,8.79735181,220.26,220.21,1.5759]
[1736192786202,10.77735181,220.27,220.21,10.37325181]
[1736192787225,1.98,220.27,220.24,8.79735181]
[1736192787738,1.98,220.27,220.23,8.79735181]
[1736192790912,1.98,220.27,220.21,10.37325181]
[1736192798206,1.98,220.27,220.22,8.79735181]
[1736192802230,1.98,220.27,220.23,8.79735181]
[1736192802530,1.98,220.29,220.26,8.79735181]
[1736192802725,1.98,220.29,220.27,8.79735181]
[1736192803120,20.0,220.31,220.27,8.79735181]
[1736192803421,20.0,220.31,220.26,8.79735181]
[1736192803626,10.77735181,220.33,220.26,8.79735181]
[1736192803936,8.79735181,220.32,220.25,8.79735181]
[1736192804147,8.79735181,220.31,220.24,11.351]
[1736192804336,8.79735181,220.3,220.24,11.351]
[1736192804725,2.80937471,220.3,220.24,11.351]
[1736192805748,2.80937471,220.3,220.24,20.14835181]
[1736192807047,4.78937471,220.3,220.24,20.14835181]
[1736192807944,4.78937471,220.3,220.24,8.79735181]
[1736192808147,8.79735181,220.29,220.22,8.79735181]
[1736192810167,10.77735181,220.3,220.23,8.79735181]
[1736192810957,32.57423581,220.32,220.25,8.79735181]
[1736192811147,1.5439,220.36,220.25,8.79735181]
[1736192811148,10.77735181,220.31,220.25,8.79735181]
[1736192811546,10.77735181,220.31,220.24,8.79735181]
[1736192812267,8.79735181,220.3,220.24,8.79735181]
[1736192812859,10.77735181,220.31,220.24,8.79735181]
[1736192814966,10.77735181,220.31,220.21,12.9286]
[1736192814967,1.98,220.31,220.25,8.79735181]
[1736192815277,8.79735181,220.34,220.27,8.79735181]
[1736192815437,1.98,220.33,220.27,8.79735181]
[1736192816138,10.77735181,220.33,220.26,8.79735181]
[1736192817738,10.77735181,220.33,220.24,6.6434]
[1736192817739,10.77735181,220.33,220.27,8.79735181]
[1736192818245,10.77735181,220.33,220.26,8.79735181]
[1736192818670,10.77735181,220.33,220.27,8.79735181]
[1736192819666,10.77735181,220.33,220.26,8.79735181]
[1736192823167,10.77735181,220.33,220.24,6.6434]
[1736192823168,8.79735181,220.31,220.24,6.6434]
[1736192823358,8.79735181,220.3,220.24,6.6434]
[1736192824140,8.79735181,220.28,220.21,1.5759]
[1736192824346,8.79735181,220.28,220.22,8.79735181]
[1736192824760,8.79735181,220.3,220.23,8.79735181]
[1736192825274,8.79735181,220.3,220.24,8.79735181]
[1736192828174,10.77735181,220.3,220.24,8.79735181]
[1736192828673,10.77735181,220.3,220.23,8.79735181]
[1736192831683,8.79735181,220.29,220.22,8.79735181]
[1736192831871,8.79735181,220.29,220.21,8.79735181]
[1736192832594,8.79735181,220.27,220.2,27.20894467]
[1736192832887,8.79735181,220.27,220.2,20.15055181]
[1736192833572,8.79735181,220.28,220.2,20.15055181]
[1736192834266,8.79735181,220.28,220.21,8.79735181]
[1736192834494,1.98,220.3,220.24,8.79735181]
[1736192834785,8.79735181,220.29,220.23,8.79735181]
[1736192835174,8.79735181,220.29,220.22,20.14955181]
[1736192836064,1.98,220.3,220.23,8.79735181]
[1736192836065,10.77735181,220.3,220.23,8.79735181]
[1736192837286,10.77735181,220.3,220.22,20.14955181]
[1736192838370,1.98,220.3,220.23,8.79735181]
[1736192841087,8.79735181,220.29,220.22,11.3522]
[1736192841964,8.79735181,220.29,220.22,20.14955181]
[1736192842158,8.79735181,220.28,220.22,11.3522]
[1736192842359,8.79735181,220.27,220.22,11.3522]
[1736192842897,8.79735181,220.28,220.22,11.3522]
[1736192843263,8.79735181,220.29,220.22,11.3522]
[1736192843995,10.77735181,220.3,220.23,8.79735181]
[1736192844501,8.79735181,220.33,220.26,8.79735181]
[1736192844696,1.98,220.32,220.27,8.79735181]
[1736192845056,10.77735181,220.34,220.27,8.79735181]
[1736192845682,10.77735181,220.34,220.28,8.79735181]
[1736192846162,10.77735181,220.34,220.27,8.79735181]
[1736192846582,8.79735181,220.32,220.25,8.79735181]
[1736192846774,8.79735181,220.32,220.26,8.79735181]
[1736192846978,8.79735181,220.33,220.26,8.79735181]
[1736192847602,8.79735181,220.32,220.24,31.3512]
[1736192847888,8.79735181,220.31,220.24,40.14855181]
[1736192848787,8.79735181,220.3,220.24,40.14855181]
[1736192848968,8.79735181,220.3,220.24,31.3512]
[1736192850712,8.79735181,220.3,220.24,11.3512]
[1736192850988,8.79735181,220.29,220.24,11.3512]
[1736192851289,8.79735181,220.28,220.21,26.26072428]
[1736192851480,8.79735181,220.25,220.19,7.05839286]